[Event "Titled Tuesday Blitz November 22 Late 2022"]
[White "Yuan, Qingyu"]
[Black "Robson, Ray"]
[WhiteFideId "8609772"]
[BlackFideId "2023970"]
[WhiteElo "2359"]
[BlackElo "2668"]
[Result "0-1"]
[Round "05"]
[TimeControl "180+1"]
[Date "2022.11.22"]
[WhiteClock "0:00:02"]
[BlackClock "0:00:18"]

1. e4 {[%clk 0:03:00]}  c5 {[%clk 0:02:55]} 2. Nf3 {[%clk 0:03:00]}  d6 {[%clk 0:02:55]} 3. d4 {[%clk 0:03:01]}  cxd4 {[%clk 0:02:56]} 4. Nxd4 {[%clk 0:03:02]}  Nf6 {[%clk 0:02:57]} 5. Nc3 {[%clk 0:03:03]}  a6 {[%clk 0:02:57]} 6. Rg1 {[%clk 0:03:03]}  g6 {[%clk 0:02:53]} 7. g4 {[%clk 0:02:59]}  Bg7 {[%clk 0:02:53]} 8. g5 {[%clk 0:02:59]}  Nfd7 {[%clk 0:02:49]} 9. Be3 {[%clk 0:02:56]}  Nc6 {[%clk 0:02:45]} 10. Be2 {[%clk 0:02:43]}  O-O {[%clk 0:02:15]} 11. h4 {[%clk 0:02:36]}  Nxd4 {[%clk 0:01:52]} 12. Bxd4 {[%clk 0:02:36]}  Bxd4 {[%clk 0:01:53]} 13. Qxd4 {[%clk 0:02:37]}  Qb6 {[%clk 0:01:54]} 14. O-O-O {[%clk 0:02:17]}  Qxd4 {[%clk 0:01:53]} 15. Rxd4 {[%clk 0:02:18]}  Nb8 {[%clk 0:01:21]} 16. h5 {[%clk 0:01:49]}  Nc6 {[%clk 0:01:20]} 17. Rd2 {[%clk 0:01:49]}  Be6 {[%clk 0:01:19]} 18. f4 {[%clk 0:01:39]}  Kg7 {[%clk 0:01:13]} 19. Bd3 {[%clk 0:01:24]}  b5 {[%clk 0:01:08]} 20. f5 {[%clk 0:01:20]}  b4 {[%clk 0:01:03]} 21. Ne2 {[%clk 0:01:16]}  Bd7 {[%clk 0:01:02]} 22. Nf4 {[%clk 0:01:12]}  Ne5 {[%clk 0:01:02]} 23. Rf2 {[%clk 0:00:40]}  gxf5 {[%clk 0:00:45]} 24. exf5 {[%clk 0:00:38]}  Bc6 {[%clk 0:00:38]} 25. f6+ {[%clk 0:00:25]}  exf6 {[%clk 0:00:39]} 26. gxf6+ {[%clk 0:00:24]}  Kh6 {[%clk 0:00:38]} 27. Rg7 {[%clk 0:00:17]}  Rg8 {[%clk 0:00:37]} 28. Rxh7+ {[%clk 0:00:17]}  Kg5 {[%clk 0:00:38]} 29. Nh3+ {[%clk 0:00:10]}  Kh4 {[%clk 0:00:38]} 30. Bf5 {[%clk 0:00:07]}  Ng4 {[%clk 0:00:22]} 31. Bxg4 {[%clk 0:00:04]}  Rxg4 {[%clk 0:00:23]} 32. Nf4 {[%clk 0:00:02]}  Kg3 {[%clk 0:00:16]} 33. Nd3 {[%clk 0:00:03]}  Be4 {[%clk 0:00:17]} 34. Rf1 {[%clk 0:00:02]}  Bxh7 {[%clk 0:00:16]} 35. Rg1+ {[%clk 0:00:01]}  Kh4 {[%clk 0:00:17]} 36. Rh1+ {[%clk 0:00:02]}  Kg5 {[%clk 0:00:17]} 37. Re1 {[%clk 0:00:02]}  Bxd3 {[%clk 0:00:17]} 38. cxd3 {[%clk 0:00:02]}  Kxh5 {[%clk 0:00:17]} 39. Re7 {[%clk 0:00:02]}  Kg6 {[%clk 0:00:18]} 40. Ra7 {[%clk 0:00:02]}  Rxa7 {[%clk 0:00:18]} 0-1


[Site "https://www.chess.com"]

[Event "Titled Tuesday Blitz November 22 Late 2022"]
[White "Zanette, Edgard Vinicius"]
[Black "Curtis, John"]
[WhiteFideId "2109263"]
[BlackFideId "3200256"]
[WhiteElo "2211"]
[BlackElo "2203"]
[Result "0-1"]
[Round "05"]
[TimeControl "180+1"]
[Date "2022.11.23"]
[WhiteClock "0:01:54"]
[BlackClock "0:01:47"]

1. e4 {[%clk 0:03:00]}  c5 {[%clk 0:02:59]} 2. Nc3 {[%clk 0:03:00]}  d6 {[%clk 0:02:59]} 3. f4 {[%clk 0:03:00]}  Nc6 {[%clk 0:02:58]} 4. Nf3 {[%clk 0:03:00]}  Bd7 {[%clk 0:02:58]} 5. g3 {[%clk 0:02:59]}  g6 {[%clk 0:02:58]} 6. Bg2 {[%clk 0:02:59]}  Bg7 {[%clk 0:02:58]} 7. d3 {[%clk 0:03:00]}  Rb8 {[%clk 0:02:54]} 8. O-O {[%clk 0:02:58]}  b5 {[%clk 0:02:54]} 9. Rb1 {[%clk 0:02:50]}  Nd4 {[%clk 0:02:44]} 10. Ne2 {[%clk 0:02:35]}  Nxe2+ {[%clk 0:02:42]} 11. Qxe2 {[%clk 0:02:35]}  b4 {[%clk 0:02:27]} 12. e5 {[%clk 0:02:27]}  dxe5 {[%clk 0:02:20]} 13. Nxe5 {[%clk 0:02:26]}  Nf6 {[%clk 0:02:06]} 14. g4 {[%clk 0:02:13]}  O-O {[%clk 0:01:57]} 15. g5 {[%clk 0:02:11]}  Ne8 {[%clk 0:01:55]} 16. Bc6 {[%clk 0:02:04]}  Bxe5 {[%clk 0:01:53]} 17. Bxd7 {[%clk 0:01:54]}  Bd4+ {[%clk 0:01:47]} 0-1


[Site "https://www.chess.com"]

[Event "Titled Tuesday Blitz November 22 Late 2022"]
[White "Zhigalko, Sergei"]
[Black "Piesik, Piotr"]
[WhiteFideId "13502956"]
[BlackFideId "1136194"]
[WhiteElo "2662"]
[BlackElo "2316"]
[Result "1-0"]
[Round "05"]
[TimeControl "180+1"]
[Date "2022.11.22"]
[WhiteClock "0:01:05"]
[BlackClock "0:00:22"]

1. e4 {[%clk 0:03:00]}  e6 {[%clk 0:02:57]} 2. d4 {[%clk 0:03:00]}  d5 {[%clk 0:02:57]} 3. e5 {[%clk 0:03:01]}  c5 {[%clk 0:02:57]} 4. c3 {[%clk 0:03:02]}  Nc6 {[%clk 0:02:57]} 5. Nf3 {[%clk 0:03:02]}  Bd7 {[%clk 0:02:56]} 6. Be2 {[%clk 0:03:01]}  Nge7 {[%clk 0:02:19]} 7. Na3 {[%clk 0:03:01]}  cxd4 {[%clk 0:02:11]} 8. cxd4 {[%clk 0:03:02]}  Nf5 {[%clk 0:02:09]} 9. Nc2 {[%clk 0:03:02]}  Qb6 {[%clk 0:02:09]} 10. O-O {[%clk 0:03:02]}  Na5 {[%clk 0:02:01]} 11. g4 {[%clk 0:02:57]}  Ne7 {[%clk 0:01:57]} 12. Nfe1 {[%clk 0:02:58]}  Bb5 {[%clk 0:01:55]} 13. Nd3 {[%clk 0:02:58]}  h5 {[%clk 0:01:54]} 14. gxh5 {[%clk 0:02:59]}  Nf5 {[%clk 0:01:53]} 15. Be3 {[%clk 0:02:49]}  Nc6 {[%clk 0:01:52]} 16. Bg4 {[%clk 0:02:42]}  Rc8 {[%clk 0:01:24]} 17. Kh1 {[%clk 0:02:11]}  Be7 {[%clk 0:01:20]} 18. Rg1 {[%clk 0:02:10]}  Rh7 {[%clk 0:01:17]} 19. Nf4 {[%clk 0:02:05]}  Nh6 {[%clk 0:01:12]} 20. Nxd5 {[%clk 0:01:47]}  Qd8 {[%clk 0:01:11]} 21. Bxh6 {[%clk 0:01:46]}  Rxh6 {[%clk 0:00:49]} 22. Nde3 {[%clk 0:01:45]}  Bg5 {[%clk 0:00:41]} 23. Bf3 {[%clk 0:01:45]}  Rh7 {[%clk 0:00:39]} 24. Be4 {[%clk 0:01:43]}  Rh8 {[%clk 0:00:36]} 25. Qg4 {[%clk 0:01:43]}  Bh6 {[%clk 0:00:36]} 26. Rad1 {[%clk 0:01:42]}  Ne7 {[%clk 0:00:34]} 27. d5 {[%clk 0:01:41]}  exd5 {[%clk 0:00:33]} 28. Nxd5 {[%clk 0:01:38]}  Nxd5 {[%clk 0:00:32]} 29. Bxd5 {[%clk 0:01:14]}  Qc7 {[%clk 0:00:24]} 30. Nd4 {[%clk 0:01:09]}  Bc6 {[%clk 0:00:21]} 31. Bxc6+ {[%clk 0:01:04]}  bxc6 {[%clk 0:00:22]} 32. Nf5 {[%clk 0:01:05]} 1-0


[Site "https://www.chess.com"]

[Event "Titled Tuesday Blitz November 22 Late 2022"]
[White "chess50years"]
[Black "Prohorov, Olexandr"]
[BlackFideId "14105578"]
[WhiteElo "2055"]
[BlackElo "1993"]
[Result "1-0"]
[Round "05"]
[TimeControl "180+1"]
[Date "2022.11.23"]
[WhiteClock "0:00:20"]
[BlackClock "0:00:26"]

1. d4 {[%clk 0:03:00]}  g6 {[%clk 0:02:58]} 2. c4 {[%clk 0:03:00]}  Bg7 {[%clk 0:02:58]} 3. Nc3 {[%clk 0:03:00]}  c5 {[%clk 0:02:58]} 4. e3 {[%clk 0:02:48]}  Nf6 {[%clk 0:02:57]} 5. Nf3 {[%clk 0:02:46]}  O-O {[%clk 0:02:56]} 6. Be2 {[%clk 0:02:46]}  cxd4 {[%clk 0:02:57]} 7. Nxd4 {[%clk 0:02:44]}  d5 {[%clk 0:02:56]} 8. cxd5 {[%clk 0:02:40]}  Nxd5 {[%clk 0:02:55]} 9. Nxd5 {[%clk 0:02:37]}  Qxd5 {[%clk 0:02:54]} 10. O-O {[%clk 0:02:37]}  Nc6 {[%clk 0:02:51]} 11. Bf3 {[%clk 0:02:34]}  Qc5 {[%clk 0:02:46]} 12. Nxc6 {[%clk 0:02:31]}  bxc6 {[%clk 0:02:46]} 13. Qa4 {[%clk 0:02:26]}  Bb7 {[%clk 0:02:26]} 14. Bd2 {[%clk 0:02:23]}  Rfd8 {[%clk 0:02:18]} 15. Bb4 {[%clk 0:02:17]}  Qg5 {[%clk 0:02:07]} 16. Rfd1 {[%clk 0:02:10]}  Bxb2 {[%clk 0:01:50]} 17. Rab1 {[%clk 0:02:09]}  Be5 {[%clk 0:01:46]} 18. Bxc6 {[%clk 0:01:55]}  Bxc6 {[%clk 0:01:42]} 19. Qxc6 {[%clk 0:01:56]}  Rac8 {[%clk 0:01:39]} 20. Qe4 {[%clk 0:01:45]}  Qh5 {[%clk 0:01:29]} 21. Rxd8+ {[%clk 0:01:36]}  Rxd8 {[%clk 0:01:29]} 22. g3 {[%clk 0:01:33]}  Bf6 {[%clk 0:01:20]} 23. Kg2 {[%clk 0:01:26]}  a5 {[%clk 0:01:18]} 24. Ba3 {[%clk 0:01:11]}  Rd2 {[%clk 0:01:12]} 25. Bxe7 {[%clk 0:00:58]}  Bxe7 {[%clk 0:00:55]} 26. Qxe7 {[%clk 0:00:59]}  Qe2 {[%clk 0:00:46]} 27. Rb8+ {[%clk 0:00:52]}  Kg7 {[%clk 0:00:47]} 28. Qf8+ {[%clk 0:00:43]}  Kf6 {[%clk 0:00:47]} 29. Rb6+ {[%clk 0:00:37]}  Kg5 {[%clk 0:00:47]} 30. Qxf7 {[%clk 0:00:35]}  Qxe3 {[%clk 0:00:31]} 31. h4+ {[%clk 0:00:25]}  Kh6 {[%clk 0:00:30]} 32. Qf8+ {[%clk 0:00:24]}  Kh5 {[%clk 0:00:27]} 33. Rb5+ {[%clk 0:00:24]}  g5 {[%clk 0:00:26]} 34. Rxg5+ {[%clk 0:00:20]} 1-0


[Site "https://www.chess.com"]

[Event "Titled Tuesday Blitz November 22 Late 2022"]
[White "vjecspec"]
[Black "Fiol, Fabrice"]
[BlackFideId "611670"]
[WhiteElo "2566"]
[BlackElo "2447"]
[Result "1-0"]
[Round "05"]
[TimeControl "180+1"]
[Date "2022.11.23"]
[WhiteClock "0:00:15"]
[BlackClock "0:00:01"]

1. e4 {[%clk 0:03:00]}  c5 {[%clk 0:02:59]} 2. Nf3 {[%clk 0:02:59]}  e6 {[%clk 0:03:00]} 3. c4 {[%clk 0:02:59]}  a6 {[%clk 0:02:59]} 4. d4 {[%clk 0:02:59]}  cxd4 {[%clk 0:02:59]} 5. Nxd4 {[%clk 0:03:00]}  Qc7 {[%clk 0:02:58]} 6. Nc3 {[%clk 0:03:00]}  b6 {[%clk 0:02:59]} 7. Be2 {[%clk 0:02:59]}  Bb7 {[%clk 0:02:59]} 8. f3 {[%clk 0:02:58]}  Nf6 {[%clk 0:02:59]} 9. Be3 {[%clk 0:02:55]}  d6 {[%clk 0:03:00]} 10. O-O {[%clk 0:02:56]}  Nbd7 {[%clk 0:03:00]} 11. Qd2 {[%clk 0:02:52]}  Be7 {[%clk 0:03:01]} 12. Rfc1 {[%clk 0:02:44]}  h5 {[%clk 0:03:01]} 13. a4 {[%clk 0:02:40]}  h4 {[%clk 0:03:01]} 14. h3 {[%clk 0:02:38]}  O-O {[%clk 0:02:57]} 15. a5 {[%clk 0:02:38]}  bxa5 {[%clk 0:02:52]} 16. Nb3 {[%clk 0:02:38]}  a4 {[%clk 0:01:50]} 17. Nxa4 {[%clk 0:02:05]}  Nh5 {[%clk 0:01:43]} 18. Na5 {[%clk 0:02:01]}  Ng3 {[%clk 0:01:41]} 19. Nxb7 {[%clk 0:01:12]}  Nxe2+ {[%clk 0:01:39]} 20. Qxe2 {[%clk 0:01:11]}  Qxb7 {[%clk 0:01:40]} 21. Rab1 {[%clk 0:01:02]}  a5 {[%clk 0:01:35]} 22. Nc3 {[%clk 0:01:00]}  Nc5 {[%clk 0:01:29]} 23. Nb5 {[%clk 0:00:52]}  a4 {[%clk 0:01:20]} 24. Rd1 {[%clk 0:00:49]}  Rfd8 {[%clk 0:01:18]} 25. Bxc5 {[%clk 0:00:43]}  dxc5 {[%clk 0:01:18]} 26. Rxd8+ {[%clk 0:00:43]}  Rxd8 {[%clk 0:01:15]} 27. Rd1 {[%clk 0:00:43]}  Rxd1+ {[%clk 0:01:10]} 28. Qxd1 {[%clk 0:00:43]}  Bf6 {[%clk 0:01:10]} 29. Qxa4 {[%clk 0:00:37]}  Bxb2 {[%clk 0:01:09]} 30. Qd1 {[%clk 0:00:35]}  Bf6 {[%clk 0:00:58]} 31. Qd6 {[%clk 0:00:25]}  Be7 {[%clk 0:00:45]} 32. Qc7 {[%clk 0:00:25]}  Qxc7 {[%clk 0:00:43]} 33. Nxc7 {[%clk 0:00:26]}  Bf6 {[%clk 0:00:40]} 34. Kf2 {[%clk 0:00:22]}  Bd4+ {[%clk 0:00:40]} 35. Ke2 {[%clk 0:00:23]}  g5 {[%clk 0:00:40]} 36. Kd3 {[%clk 0:00:22]}  Kf8 {[%clk 0:00:38]} 37. Nb5 {[%clk 0:00:22]}  Bf2 {[%clk 0:00:37]} 38. e5 {[%clk 0:00:19]}  Ke7 {[%clk 0:00:34]} 39. Ke4 {[%clk 0:00:20]}  f5+ {[%clk 0:00:30]} 40. exf6+ {[%clk 0:00:19]}  Kxf6 {[%clk 0:00:31]} 41. Nc3 {[%clk 0:00:15]}  Bd4 {[%clk 0:00:28]} 42. Ne2 {[%clk 0:00:15]}  Bf2 {[%clk 0:00:27]} 43. f4 {[%clk 0:00:16]}  gxf4 {[%clk 0:00:18]} 44. Nxf4 {[%clk 0:00:17]}  e5 {[%clk 0:00:14]} 45. Nd3 {[%clk 0:00:16]}  Bd4 {[%clk 0:00:14]} 46. Ne1 {[%clk 0:00:14]}  Ke6 {[%clk 0:00:13]} 47. Nf3 {[%clk 0:00:15]}  Bf2 {[%clk 0:00:09]} 48. Nxe5 {[%clk 0:00:15]}  Bg3 {[%clk 0:00:08]} 49. Nd3 {[%clk 0:00:15]}  Kd6 {[%clk 0:00:07]} 50. Kf3 {[%clk 0:00:15]}  Kc6 {[%clk 0:00:06]} 51. Ke4 {[%clk 0:00:15]}  Kd6 {[%clk 0:00:06]} 52. Kf5 {[%clk 0:00:15]}  Kc6 {[%clk 0:00:06]} 53. Ke6 {[%clk 0:00:16]}  Bh2 {[%clk 0:00:05]} 54. Ne5+ {[%clk 0:00:15]}  Kb6 {[%clk 0:00:04]} 55. Kd5 {[%clk 0:00:15]}  Bg1 {[%clk 0:00:04]} 56. Nd7+ {[%clk 0:00:15]}  Ka5 {[%clk 0:00:03]} 57. Nxc5 {[%clk 0:00:16]}  Kb4 {[%clk 0:00:04]} 58. Nd3+ {[%clk 0:00:16]}  Kc3 {[%clk 0:00:04]} 59. Ne5 {[%clk 0:00:17]}  Kd2 {[%clk 0:00:03]} 60. Ke4 {[%clk 0:00:15]}  Ke2 {[%clk 0:00:03]} 61. Ng4 {[%clk 0:00:14]}  Kf1 {[%clk 0:00:03]} 62. Kf3 {[%clk 0:00:15]}  Bc5 {[%clk 0:00:03]} 63. Nh6 {[%clk 0:00:14]}  Kg1 {[%clk 0:00:02]} 64. Nf5 {[%clk 0:00:14]}  Bf2 {[%clk 0:00:02]} 65. c5 {[%clk 0:00:14]}  Bxc5 {[%clk 0:00:01]} 66. Nxh4 {[%clk 0:00:15]}  Kh2 {[%clk 0:00:01]} 67. Nf5 {[%clk 0:00:15]}  Bf8 {[%clk 0:00:01]} 68. h4 {[%clk 0:00:15]} 1-0


[Site "https://www.chess.com"]

[Event "Titled Tuesday Blitz November 22 Late 2022"]
[White "Aghasiyev, Kamal"]
[Black "Forgacs, Attila Jr."]
[WhiteFideId "13402854"]
[BlackFideId "773654"]
[WhiteElo "2341"]
[BlackElo "2168"]
[Result "1-0"]
[Round "06"]
[TimeControl "180+1"]
[Date "2022.11.23"]
[WhiteClock "0:01:27"]
[BlackClock "0:02:21"]

1. d4 {[%clk 0:02:59]}  Nf6 {[%clk 0:03:00]} 2. Nf3 {[%clk 0:02:57]}  g6 {[%clk 0:03:00]} 3. Nbd2 {[%clk 0:02:57]}  Bg7 {[%clk 0:03:00]} 4. e4 {[%clk 0:02:54]}  d6 {[%clk 0:03:00]} 5. h3 {[%clk 0:02:51]}  O-O {[%clk 0:03:00]} 6. Bd3 {[%clk 0:02:50]}  c5 {[%clk 0:03:01]} 7. c3 {[%clk 0:02:50]}  Nc6 {[%clk 0:03:00]} 8. O-O {[%clk 0:02:50]}  Qc7 {[%clk 0:02:55]} 9. d5 {[%clk 0:02:43]}  Nb8 {[%clk 0:02:40]} 10. a4 {[%clk 0:02:43]}  e6 {[%clk 0:02:38]} 11. dxe6 {[%clk 0:02:04]}  Bxe6 {[%clk 0:02:38]} 12. Ng5 {[%clk 0:02:01]}  Bd7 {[%clk 0:02:36]} 13. Nc4 {[%clk 0:02:01]}  h6 {[%clk 0:02:33]} 14. Nf3 {[%clk 0:02:00]}  Be6 {[%clk 0:02:31]} 15. Bf4 {[%clk 0:01:58]}  Rd8 {[%clk 0:02:30]} 16. Re1 {[%clk 0:01:55]}  Nc6 {[%clk 0:02:29]} 17. Bh2 {[%clk 0:01:28]}  d5 {[%clk 0:02:21]} 18. Bxc7 {[%clk 0:01:27]} 1-0


[Site "https://www.chess.com"]

[Event "Titled Tuesday Blitz November 22 Late 2022"]
[White "Alexikov, Alexander"]
[Black "Romanchuk, Viktor"]
[WhiteFideId "14103958"]
[BlackFideId "14109271"]
[WhiteElo "2222"]
[BlackElo "2242"]
[Result "1/2-1/2"]
[Round "06"]
[TimeControl "180+1"]
[Date "2022.11.23"]
[WhiteClock "0:00:39"]
[BlackClock "0:00:09"]

1. e4 {[%clk 0:03:00]}  e6 {[%clk 0:02:59]} 2. d4 {[%clk 0:02:58]}  d5 {[%clk 0:02:59]} 3. Nc3 {[%clk 0:02:58]}  dxe4 {[%clk 0:02:58]} 4. Nxe4 {[%clk 0:02:58]}  Nd7 {[%clk 0:02:59]} 5. Nf3 {[%clk 0:02:56]}  Ngf6 {[%clk 0:03:00]} 6. Nxf6+ {[%clk 0:02:56]}  Nxf6 {[%clk 0:03:00]} 7. Ne5 {[%clk 0:02:56]}  Nd7 {[%clk 0:03:00]} 8. Nc4 {[%clk 0:02:53]}  Be7 {[%clk 0:02:50]} 9. Bf4 {[%clk 0:02:51]}  O-O {[%clk 0:02:48]} 10. Be2 {[%clk 0:02:48]}  Nb6 {[%clk 0:02:40]} 11. Ne5 {[%clk 0:02:45]}  Nd7 {[%clk 0:02:37]} 12. Nd3 {[%clk 0:02:43]}  Bd6 {[%clk 0:02:28]} 13. O-O {[%clk 0:02:37]}  Bxf4 {[%clk 0:02:27]} 14. Nxf4 {[%clk 0:02:37]}  e5 {[%clk 0:02:27]} 15. dxe5 {[%clk 0:02:34]}  Nxe5 {[%clk 0:02:28]} 16. Re1 {[%clk 0:02:26]}  Bf5 {[%clk 0:02:11]} 17. Nd5 {[%clk 0:02:14]}  c6 {[%clk 0:02:06]} 18. Ne3 {[%clk 0:02:11]}  Be6 {[%clk 0:02:04]} 19. b3 {[%clk 0:02:07]}  Re8 {[%clk 0:01:43]} 20. c4 {[%clk 0:02:04]}  Qb6 {[%clk 0:01:40]} 21. Qc2 {[%clk 0:01:58]}  Rad8 {[%clk 0:01:38]} 22. Rad1 {[%clk 0:01:57]}  Ng6 {[%clk 0:01:33]} 23. g3 {[%clk 0:01:55]}  Qc5 {[%clk 0:01:32]} 24. Rxd8 {[%clk 0:01:48]}  Rxd8 {[%clk 0:01:31]} 25. Rd1 {[%clk 0:01:48]}  Rd4 {[%clk 0:01:28]} 26. h4 {[%clk 0:01:38]}  Qd6 {[%clk 0:01:16]} 27. Rxd4 {[%clk 0:01:37]}  Qxd4 {[%clk 0:01:17]} 28. Kg2 {[%clk 0:01:36]}  Ne5 {[%clk 0:01:05]} 29. Qd1 {[%clk 0:01:32]}  Qxd1 {[%clk 0:01:03]} 30. Nxd1 {[%clk 0:01:29]}  f6 {[%clk 0:00:58]} 31. Nc3 {[%clk 0:01:29]}  Kf8 {[%clk 0:00:57]} 32. Ne4 {[%clk 0:01:27]}  Ke7 {[%clk 0:00:55]} 33. Nc5 {[%clk 0:01:25]}  Bc8 {[%clk 0:00:55]} 34. f4 {[%clk 0:01:24]}  Nf7 {[%clk 0:00:52]} 35. g4 {[%clk 0:01:20]}  Nd6 {[%clk 0:00:48]} 36. Kf3 {[%clk 0:01:15]}  b6 {[%clk 0:00:48]} 37. Na4 {[%clk 0:01:14]}  c5 {[%clk 0:00:45]} 38. Nc3 {[%clk 0:01:13]}  Bb7+ {[%clk 0:00:46]} 39. Ke3 {[%clk 0:01:13]}  h6 {[%clk 0:00:45]} 40. h5 {[%clk 0:01:11]}  Ke6 {[%clk 0:00:38]} 41. Bd3 {[%clk 0:01:10]}  Bc6 {[%clk 0:00:36]} 42. a4 {[%clk 0:01:09]}  Bb7 {[%clk 0:00:35]} 43. Bg6 {[%clk 0:01:01]}  Bc6 {[%clk 0:00:35]} 44. Ne2 {[%clk 0:00:57]}  Nb7 {[%clk 0:00:30]} 45. Ng3 {[%clk 0:00:55]}  Nd6 {[%clk 0:00:20]} 46. Nf5 {[%clk 0:00:50]}  Nxf5+ {[%clk 0:00:19]} 47. Bxf5+ {[%clk 0:00:50]}  Kd6 {[%clk 0:00:19]} 48. Bg6 {[%clk 0:00:49]}  Bg2 {[%clk 0:00:17]} 49. Bf5 {[%clk 0:00:48]}  Bh3 {[%clk 0:00:14]} 50. Kf2 {[%clk 0:00:46]}  a6 {[%clk 0:00:12]} 51. Kg1 {[%clk 0:00:41]}  a5 {[%clk 0:00:10]} 52. Kf2 {[%clk 0:00:40]}  Ke7 {[%clk 0:00:08]} 53. Kg1 {[%clk 0:00:39]}  Kd6 {[%clk 0:00:08]} 54. Kf2 {[%clk 0:00:39]}  Ke7 {[%clk 0:00:09]} 55. Kg1 {[%clk 0:00:39]}  Kd6 {[%clk 0:00:09]} 1/2-1/2


[Site "https://www.chess.com"]

[Event "Titled Tuesday Blitz November 22 Late 2022"]
[White "Antonova, Nadezhda"]
[Black "Gundam, Rohit"]
[WhiteFideId "14700182"]
[BlackFideId "75002809"]
[WhiteElo "1813"]
[BlackElo "2385"]
[Result "0-1"]
[Round "06"]
[TimeControl "180+1"]
[Date "2022.11.23"]
[WhiteClock "0:00:01"]
[BlackClock "0:00:10"]

1. Nf3 {[%clk 0:02:59]}  Nf6 {[%clk 0:03:00]} 2. b3 {[%clk 0:03:00]}  g6 {[%clk 0:02:59]} 3. Bb2 {[%clk 0:03:01]}  Bg7 {[%clk 0:03:00]} 4. g3 {[%clk 0:03:01]}  O-O {[%clk 0:03:00]} 5. Bg2 {[%clk 0:03:02]}  d5 {[%clk 0:03:00]} 6. O-O {[%clk 0:03:02]}  c5 {[%clk 0:03:01]} 7. c4 {[%clk 0:03:02]}  d4 {[%clk 0:03:01]} 8. b4 {[%clk 0:03:02]}  Nc6 {[%clk 0:03:00]} 9. bxc5 {[%clk 0:03:02]}  e5 {[%clk 0:03:00]} 10. d3 {[%clk 0:03:02]}  Nd7 {[%clk 0:02:59]} 11. Ba3 {[%clk 0:03:00]}  Qa5 {[%clk 0:02:57]} 12. Qd2 {[%clk 0:02:55]}  Qa6 {[%clk 0:02:42]} 13. Ng5 {[%clk 0:02:41]}  Bh6 {[%clk 0:02:30]} 14. Bd5 {[%clk 0:02:25]}  Kg7 {[%clk 0:01:19]} 15. f4 {[%clk 0:02:14]}  exf4 {[%clk 0:01:09]} 16. Qxf4 {[%clk 0:01:48]}  Nce5 {[%clk 0:00:42]} 17. h4 {[%clk 0:01:12]}  f6 {[%clk 0:00:17]} 18. Ne6+ {[%clk 0:01:06]}  Qxe6 {[%clk 0:00:17]} 19. Bxe6 {[%clk 0:01:06]}  Bxf4 {[%clk 0:00:18]} 20. gxf4 {[%clk 0:00:56]}  Nc6 {[%clk 0:00:17]} 21. Nd2 {[%clk 0:00:48]}  Re8 {[%clk 0:00:17]} 22. f5 {[%clk 0:00:25]}  Nde5 {[%clk 0:00:15]} 23. Bxc8 {[%clk 0:00:23]}  Raxc8 {[%clk 0:00:14]} 24. Ne4 {[%clk 0:00:21]}  Rf8 {[%clk 0:00:11]} 25. Rab1 {[%clk 0:00:18]}  Rc7 {[%clk 0:00:10]} 26. Kg2 {[%clk 0:00:16]}  Ng4 {[%clk 0:00:10]} 27. Kg3 {[%clk 0:00:16]}  Ne3 {[%clk 0:00:11]} 28. Rf3 {[%clk 0:00:15]}  Nxf5+ {[%clk 0:00:11]} 29. Rxf5 {[%clk 0:00:12]}  gxf5 {[%clk 0:00:12]} 30. Nd6 {[%clk 0:00:13]}  Kg6 {[%clk 0:00:06]} 31. Kf4 {[%clk 0:00:13]}  Ne5 {[%clk 0:00:05]} 32. Nxf5 {[%clk 0:00:11]}  Nf7 {[%clk 0:00:04]} 33. Nxd4 {[%clk 0:00:11]}  Re8 {[%clk 0:00:04]} 34. e4 {[%clk 0:00:09]}  Ne5 {[%clk 0:00:04]} 35. Rb3 {[%clk 0:00:08]}  Kf7 {[%clk 0:00:04]} 36. Nf5 {[%clk 0:00:08]}  Rd8 {[%clk 0:00:04]} 37. Nd6+ {[%clk 0:00:08]}  Ke6 {[%clk 0:00:04]} 38. d4 {[%clk 0:00:05]}  Nxc4 {[%clk 0:00:03]} 39. Nxc4 {[%clk 0:00:05]}  Rxd4 {[%clk 0:00:04]} 40. Nd6 {[%clk 0:00:05]}  b5 {[%clk 0:00:04]} 41. Nxb5 {[%clk 0:00:04]}  Rdd7 {[%clk 0:00:02]} 42. Nxc7+ {[%clk 0:00:05]}  Rxc7 {[%clk 0:00:03]} 43. Rd3 {[%clk 0:00:03]}  Kf7 {[%clk 0:00:03]} 44. Rd6 {[%clk 0:00:04]}  f5 {[%clk 0:00:04]} 45. Kxf5 {[%clk 0:00:04]}  Rb7 {[%clk 0:00:05]} 46. e5 {[%clk 0:00:04]}  Rb3 {[%clk 0:00:06]} 47. e6+ {[%clk 0:00:04]}  Ke8 {[%clk 0:00:06]} 48. Bc1 {[%clk 0:00:03]}  a5 {[%clk 0:00:07]} 49. Be3 {[%clk 0:00:03]}  Rxe3 {[%clk 0:00:07]} 50. Ra6 {[%clk 0:00:04]}  Rf3+ {[%clk 0:00:07]} 51. Ke5 {[%clk 0:00:04]}  Ra3 {[%clk 0:00:06]} 52. Ra7 {[%clk 0:00:03]}  Re3+ {[%clk 0:00:07]} 53. Kd6 {[%clk 0:00:03]}  Rd3+ {[%clk 0:00:08]} 54. Kc6 {[%clk 0:00:03]}  Re3 {[%clk 0:00:08]} 55. Kd6 {[%clk 0:00:04]}  Rd3+ {[%clk 0:00:08]} 56. Kc6 {[%clk 0:00:02]}  Re3 {[%clk 0:00:09]} 57. Rxa5 {[%clk 0:00:02]}  Rxe6+ {[%clk 0:00:09]} 58. Kd5 {[%clk 0:00:02]}  Re2 {[%clk 0:00:10]} 59. Ra4 {[%clk 0:00:03]}  Rd2+ {[%clk 0:00:09]} 60. Kc6 {[%clk 0:00:03]}  Rh2 {[%clk 0:00:10]} 61. Kb7 {[%clk 0:00:02]}  Rb2+ {[%clk 0:00:10]} 62. Kc7 {[%clk 0:00:02]}  Rg2 {[%clk 0:00:07]} 63. c6 {[%clk 0:00:03]}  Rg7+ {[%clk 0:00:08]} 64. Kb8 {[%clk 0:00:03]}  Kd8 {[%clk 0:00:08]} 65. c7+ {[%clk 0:00:03]}  Rxc7 {[%clk 0:00:07]} 66. Rd4+ {[%clk 0:00:02]}  Rd7 {[%clk 0:00:08]} 67. Rxd7+ {[%clk 0:00:01]}  Kxd7 {[%clk 0:00:09]} 68. a4 {[%clk 0:00:01]}  Kc6 {[%clk 0:00:10]} 0-1


[Site "https://www.chess.com"]